bitfinex/quotes_BTCUSD_20260101
["timestamp","ask_amount","ask_price","bid_price","bid_amount"]
[1767229856948,0.00052654,88002.0,87996.0,0.07962742]
[1767229857575,0.05692,88001.0,87996.0,0.07962742]
[1767229857773,0.0114,88000.0,87996.0,0.07962742]
[1767229857994,0.05692,88000.0,87996.0,0.03976247]
[1767229858561,0.00052654,88002.0,87997.0,0.07448277]
[1767229858562,0.0114,87999.0,87997.0,0.07448277]
[1767229858825,0.0114,87999.0,87998.0,0.21218636]
[1767229860231,0.00052654,88002.0,87998.0,0.21218636]
[1767229860382,0.0114,87999.0,87998.0,0.21218636]
[1767229862456,0.01040194,87999.0,87998.0,0.21218636]
[1767229862616,0.01046801,87999.0,87998.0,0.26458156]
[1767229862826,0.01051207,87999.0,87998.0,0.26458156]
[1767229863027,0.01053409,87999.0,87998.0,0.26458156]
[1767229863223,0.00487815,87999.0,87998.0,0.26458156]
[1767229863424,0.00480174,87999.0,87998.0,0.26458156]
[1767229863747,0.0114,87999.0,87998.0,0.26458156]
[1767229863945,0.04509116,88008.0,87999.0,0.21218636]
[1767229864145,0.0114,88007.0,88000.0,0.0310799]
[1767229872234,0.01040194,88007.0,88001.0,0.21218636]
[1767229872435,0.0114,88008.0,88001.0,0.21218636]
[1767229872637,0.0029,88020.0,88003.0,0.21218636]
[1767229872839,0.0029,88020.0,88000.0,0.0310799]
[1767229872840,0.0114,88017.0,88005.0,0.21218636]
[1767229873024,0.0114,88017.0,88004.0,0.15027026]
[1767229873025,0.0114,88017.0,88012.0,0.13638068]
[1767229873222,0.000549,88012.0,88010.0,0.34856704]
[1767229873462,0.01096195,88017.0,88011.0,0.21218636]
[1767229874311,0.01096195,88017.0,88011.0,0.21163636]
[1767229874578,0.01096195,88017.0,88012.0,0.07851924]
[1767229874981,0.00596195,88017.0,88012.0,0.07851924]
[1767229875184,0.00596195,88017.0,88007.0,0.5124163]
[1767229875343,0.00596195,88017.0,88007.0,0.72460266]
[1767229877969,0.00604995,88017.0,88007.0,0.72460266]
[1767229882396,0.00604995,88017.0,88010.0,0.13638068]
[1767229888253,0.00604995,88017.0,88010.0,0.34265246]
[1767229888541,0.00604995,88017.0,88011.0,0.29789263]
[1767229890082,0.00505189,88017.0,88011.0,0.29789263]
[1767229891196,0.13139729,88030.0,88011.0,0.29789263]
[1767229891198,0.02799199,88040.0,88021.0,0.20627178]
[1767229891396,0.0114,88034.0,88030.0,0.5124163]
[1767229891553,0.0114,88034.0,88021.0,0.20627178]
[1767229891554,0.0114,88034.0,88026.0,0.13638068]
[1767229893596,0.02806017,88040.0,88034.0,0.000549]
[1767229893811,0.02806017,88040.0,88034.0,0.20682078]
[1767229894007,0.02806017,88040.0,88034.0,0.000549]
[1767229894164,0.02806017,88040.0,88030.0,0.5124163]
[1767229894165,0.02806017,88040.0,88030.0,0.71868808]
[1767229894500,0.02806017,88040.0,88031.0,0.20627178]
[1767229894763,0.02806017,88040.0,88032.0,0.29826663]
[1767229894976,0.02806017,88040.0,88033.0,0.20627178]
[1767229896131,0.0001475,88058.0,88032.0,0.09199485]
[1767229896342,0.000208,88055.0,88050.0,0.20627178]
[1767229896536,0.000208,88055.0,88049.0,0.000467]
[1767229896537,8.2e-05,88050.0,88049.0,0.000467]
[1767229896739,0.0114,88052.0,88045.0,0.5124163]
[1767229896920,0.0114,88052.0,88041.0,0.20627178]
[1767229897126,0.0114,88052.0,88042.0,0.24167703]
[1767229897458,0.0114,88052.0,88043.0,0.20627178]
[1767229898404,0.0114,88052.0,88042.0,0.03532325]
[1767229898405,0.18314337,88051.0,88042.0,0.03532325]
[1767229898997,0.18314337,88051.0,88031.0,0.20627178]
[1767229899204,0.000208,88055.0,88043.0,0.20627178]
[1767229899205,0.011608,88055.0,88043.0,0.20627178]
[1767229899501,0.0114,88055.0,88046.0,0.20627178]
[1767229900806,0.01040194,88055.0,88046.0,0.20627178]
[1767229900973,0.01040194,88055.0,88048.0,0.20627178]
[1767229901625,0.00840578,88055.0,88048.0,0.20627178]
[1767229902625,0.00740772,88055.0,88048.0,0.20627178]
[1767229902877,0.00740772,88055.0,88042.0,0.20627178]
[1767229909640,0.00740772,88055.0,88046.0,0.20943833]
[1767229909863,0.00740772,88055.0,88048.0,0.20943833]
[1767229913595,0.00740772,88055.0,88047.0,0.08582353]
[1767229913596,0.5124163,88070.0,88047.0,0.08582353]
[1767229913597,0.20113635,88073.0,88055.0,0.2053691]
[1767229913788,0.0114,88066.0,88063.0,1e-08]
[1767229913910,0.20113635,88073.0,88063.0,1e-08]
[1767229914118,0.0114,88066.0,88063.0,1e-08]
[1767229914318,0.0114,88065.0,88063.0,1e-08]
[1767229914546,0.010301,88065.0,88063.0,1e-08]
[1767229914968,9.626e-05,88065.0,88063.0,1e-08]
[1767229915168,0.01040194,88064.0,88063.0,1e-08]
[1767229915601,9.626e-05,88065.0,88063.0,1e-08]
[1767229915804,9.626e-05,88065.0,88058.0,0.13638068]
[1767229915805,0.00024069,88071.0,88061.0,0.5124163]
[1767229915966,0.00024069,88071.0,88062.0,1e-08]
[1767229918916,0.00024069,88071.0,88049.0,0.0114]
[1767229918917,0.20057858,88071.0,88040.0,0.13638068]
[1767229919124,0.20113635,88069.0,88057.0,0.13638068]
[1767229919398,0.20113635,88069.0,88057.0,0.13583168]
[1767229919614,0.20113635,88069.0,88041.0,0.01770823]
[1767229919829,0.20113635,88069.0,88041.0,0.22197833]
[1767229920040,0.20113635,88059.0,88050.0,0.5124163]
[1767229920245,0.21253635,88058.0,88042.0,0.03698553]
[1767229920448,0.21253635,88058.0,88048.0,0.5124163]
[1767229920449,0.01095193,88058.0,88048.0,0.5124163]
[1767229920623,0.21208828,88058.0,88048.0,0.5124163]
[1767229921725,0.21208828,88058.0,88042.0,0.03698553]
[1767229921910,0.21208828,88058.0,88043.0,0.01318518]
[1767229924358,0.20113635,88052.0,88029.0,0.24497169]
[1767229924560,0.01135434,88072.0,88043.0,0.13638068]
[1767229924561,0.20113635,88049.0,88043.0,0.13638068]
[1767229924760,0.20113635,88047.0,88043.0,0.13638068]
[1767229925212,0.0114,88048.0,88043.0,0.13638068]
[1767229927053,0.20113635,88047.0,88043.0,0.13638068]
[1767229928207,0.0114,88048.0,88043.0,0.13638068]
[1767229928413,0.21253635,88048.0,88044.0,0.01363807]
[1767229928609,0.21253635,88048.0,88033.0,0.2044701]
[1767229928815,0.21253635,88048.0,88041.0,0.13638068]
[1767229928816,0.0114,88048.0,88041.0,0.13638068]
[1767229930864,0.0114,88048.0,88033.0,0.0002]
[1767229930866,0.21253635,88048.0,88033.0,0.0002]
[1767229931063,0.21253635,88048.0,88034.0,0.02456129]
[1767229933117,0.21253635,88048.0,88033.0,0.0002]
[1767229935998,0.21253635,88048.0,88038.0,0.13638068]
[1767229936349,0.02456129,88050.0,88033.0,0.0002]
[1767229936350,0.02456129,88050.0,88039.0,0.13638068]
[1767229936552,0.05688,88049.0,88048.0,0.000549]
[1767229936748,0.05688,88049.0,88039.0,0.13631738]
[1767229937050,0.05688,88049.0,88040.0,0.01133732]
[1767229941086,0.28596175,88049.0,88040.0,0.01133732]
[1767229942273,0.02456129,88050.0,88049.0,0.00049]
[1767229942467,0.08144129,88050.0,88049.0,0.00042909]
[1767229942899,0.08144129,88050.0,88040.0,0.01133732]
[1767229943271,0.08144129,88050.0,88041.0,0.03829107]
[1767229945083,0.22908175,88049.0,88039.0,0.13631738]
[1767229946203,0.22908175,88049.0,88033.0,0.0002]
[1767229946419,0.22908175,88049.0,88038.0,0.13638068]
[1767229951143,0.0114,88048.0,88038.0,0.13638068]
[1767229951348,0.0114,88048.0,88038.0,0.15003875]
[1767229951574,0.24048175,88048.0,88038.0,0.15003875]
[1767229954946,0.03411089,88047.0,88038.0,0.15003875]
[1767229958342,0.0114,88046.0,88038.0,0.15003875]
[1767229959043,0.04551089,88046.0,88038.0,0.15003875]
[1767229959289,0.04551089,88046.0,88039.0,0.02113785]
[1767229961572,0.0114,88046.0,88039.0,0.02113785]
[1767229962454,0.0114,88046.0,88039.0,0.00973786]
[1767229965279,0.0114,88045.0,88039.0,0.00973786]
[1767229971530,0.0114,88044.0,88039.0,0.25908355]
[1767229971696,0.010971,88044.0,88040.0,0.02505058]
[1767229972591,0.010421,88044.0,88040.0,0.02505058]
[1767229973944,0.0114,88043.0,88040.0,0.27439627]
[1767229974128,2.953e-05,88043.0,88040.0,0.27439627]
[1767229974325,2.953e-05,88043.0,88042.0,0.24934569]
[1767229974495,0.0002,88053.0,88042.0,0.24934569]
[1767229974694,0.0114,88052.0,88042.0,0.24934569]
[1767229976758,0.0002,88053.0,88042.0,0.24934569]
[1767229976966,0.0114,88052.0,88042.0,0.24934569]
[1767229977263,0.0114,88052.0,88044.0,0.24934569]
[1767229977606,0.04548,88065.0,88044.0,0.24934569]
[1767229977816,0.04548,88065.0,88044.0,0.24949929]
[1767229977817,0.0114,88064.0,88044.0,0.24949929]
[1767229982505,0.23339237,88063.0,88044.0,0.24949929]
[1767229982684,0.23339237,88063.0,88045.0,0.26300376]
[1767229982887,0.23339237,88063.0,88045.0,0.26315736]
[1767229986389,0.23339237,88063.0,88052.0,0.13638068]
[1767229986595,0.0114,88064.0,88052.0,0.38572637]
[1767229986993,0.23339237,88069.0,88052.0,0.38572637]
[1767229987206,0.23339237,88069.0,88053.0,0.03478844]
[1767229987408,0.0114,88068.0,88053.0,0.03478844]
[1767229988205,0.24479237,88068.0,88053.0,0.03478844]
[1767229990929,0.24479237,88068.0,88053.0,0.28413413]
[1767229992563,0.0114,88068.0,88053.0,0.28413413]
[1767229992790,0.0114,88068.0,88054.0,0.01365807]
[1767229993957,0.0114,88068.0,88054.0,0.26300376]
[1767229995322,0.23339237,88070.0,88058.0,0.51177132]
[1767229995522,0.0114,88067.0,88054.0,0.26300376]
[1767229995723,0.0114,88067.0,88057.0,0.76111701]
[1767229995929,0.0114,88067.0,88057.0,0.24934569]
[1767229996128,0.0114,88067.0,88057.0,0.76111701]
[1767229996676,0.01150581,88067.0,88057.0,0.76111701]
[1767229998538,0.01150581,88067.0,88057.0,0.24934569]
[1767229998746,0.01150581,88067.0,88058.0,0.01365807]
[1767229998948,0.00010581,88067.0,88058.0,0.01365807]
[1767229999145,0.0114,88066.0,88058.0,0.01365807]
[1767229999940,0.0114,88066.0,88058.0,0.01310907]
[1767230000903,0.24039069,88065.0,88058.0,0.01310907]
[1767230001119,0.24039069,88065.0,88052.0,0.13638068]
[1767230001361,0.24039069,88065.0,88047.0,0.06113975]
[1767230001557,0.24039069,88065.0,88052.0,0.13638068]
[1767230006695,0.00010581,88067.0,88056.0,0.24930053]
[1767230006905,0.0114,88066.0,88058.0,0.24930053]
[1767230011494,0.00010581,88067.0,88058.0,0.24930053]
[1767230011698,0.0114,88065.0,88058.0,0.24930053]
[1767230014104,0.01040194,88065.0,88058.0,0.24930053]
[1767230014403,0.00010581,88067.0,88058.0,0.24930053]
[1767230014551,0.00010581,88067.0,88057.0,0.24930053]
[1767230015271,0.01130618,88070.0,88057.0,0.24930053]
[1767230015606,0.01130618,88070.0,88060.0,0.51177132]
[1767230016362,0.01130618,88070.0,88060.0,0.76107185]
[1767230017010,0.24039069,88076.0,88060.0,0.76107185]
[1767230017210,0.0114,88075.0,88060.0,0.76107185]
[1767230018057,0.24039069,88076.0,88060.0,0.76107185]
[1767230018257,0.0114,88074.0,88060.0,0.76107185]
[1767230021697,0.0114,88074.0,88066.0,0.13638068]
[1767230023477,0.24039069,88076.0,88066.0,0.13638068]
[1767230024019,0.0114,88075.0,88066.0,0.13638068]
[1767230024201,0.0114,88074.0,88066.0,0.13638068]
[1767230024400,0.24039069,88076.0,88066.0,0.13638068]
[1767230024549,0.0114,88073.0,88066.0,0.13638068]
[1767230024900,0.24039069,88076.0,88066.0,0.13638068]
[1767230025045,0.0114,88072.0,88066.0,0.13638068]
[1767230029110,0.0114,88072.0,88066.0,0.13583168]
[1767230031088,0.0114,88071.0,88066.0,0.13583168]
[1767230032561,0.24039069,88076.0,88066.0,0.13583168]
[1767230032762,0.0114,88070.0,88066.0,0.13583168]
[1767230034201,0.24039069,88076.0,88066.0,0.13583168]
[1767230034405,0.0114,88075.0,88066.0,0.13583168]
[1767230035606,0.0114,88074.0,88066.0,0.13583168]
[1767230036094,0.0114,88074.0,88060.0,0.76107185]
[1767230038053,0.0114,88074.0,88069.0,0.13638068]
[1767230038819,0.00055,88069.0,88060.0,0.76107185]
[1767230039089,0.24884475,88074.0,88066.0,0.13638068]
[1767230041079,0.01095193,88074.0,88066.0,0.13638068]
[1767230041469,0.51177132,88080.0,88066.0,0.13638068]
[1767230041704,0.24929282,88079.0,88066.0,0.13638068]
[1767230041889,0.23789282,88079.0,88066.0,0.13638068]
[1767230042214,0.24929282,88078.0,88066.0,0.13638068]
[1767230043412,0.0114,88077.0,88068.0,0.51177132]
[1767230043741,0.0114,88077.0,88066.0,0.13638068]
[1767230050120,0.0114,88076.0,88066.0,0.13638068]
[1767230050322,0.23789282,88079.0,88064.0,0.0407206]
[1767230050323,0.0114,88075.0,88064.0,0.0407206]
[1767230050525,0.0114,88074.0,88066.0,0.13638068]
[1767230050737,0.0114,88074.0,88063.0,0.01492695]
[1767230050738,0.23789282,88073.0,88063.0,0.01492695]
[1767230050942,0.23789282,88073.0,88057.0,0.00010581]
[1767230051229,0.23789282,88069.0,88057.0,0.00010581]
[1767230055280,0.23789282,88069.0,88038.0,0.21853876]
[1767230055281,0.23789282,88069.0,88055.0,0.13646468]
[1767230055485,0.2379489,88069.0,88055.0,0.13646468]
[1767230055693,0.2379489,88069.0,88045.0,0.23857016]
[1767230055694,0.2379489,88069.0,88045.0,0.05955236]
[1767230055695,0.51178247,88065.0,88045.0,0.05955236]
[1767230055811,5.608e-05,88069.0,88041.0,0.13638068]
[1767230055812,0.24929282,88064.0,88048.0,0.0196081]
[1767230056236,0.24929282,88064.0,88042.0,0.0114]
[1767230066071,0.24929282,88064.0,88041.0,0.13638068]
[1767230069034,0.24929282,88064.0,88044.0,0.23805953]
[1767230075536,0.24929282,88064.0,88048.0,0.23805953]
[1767230079445,0.51178247,88060.0,88048.0,0.23805953]
[1767230081572,0.24929282,88064.0,88048.0,0.23805953]
[1767230082780,0.51178247,88060.0,88048.0,0.23805953]
[1767230092354,0.24929282,88064.0,88048.0,0.23805953]
[1767230097112,0.51178247,88060.0,88048.0,0.23805953]
[1767230097881,0.24929282,88064.0,88048.0,0.23805953]
[1767230099964,0.51178247,88060.0,88048.0,0.23805953]
[1767230101341,0.51178247,88060.0,88043.0,0.06102823]
[1767230101342,0.24726807,88059.0,88043.0,0.06102823]
[1767230108079,0.24726807,88059.0,88044.0,0.24097416]
[1767230110292,0.0114,88064.0,88044.0,0.24097416]
[1767230110496,0.51178247,88060.0,88044.0,0.24097416]
[1767230113312,0.52313578,88080.0,88038.0,0.000148]
[1767230113313,0.0114,88073.0,88061.0,0.24097416]
[1767230113514,0.0114,88073.0,88065.0,0.24097416]
[1767230113812,0.000148,88078.0,88074.0,0.24097416]
[1767230113813,0.0114,88075.0,88074.0,0.24097416]
[1767230114571,0.010851,88075.0,88074.0,0.24097416]
[1767230115197,0.0114,88076.0,88074.0,0.24097416]
[1767230115612,0.01085,88076.0,88074.0,0.24097416]
[1767230119627,0.51168525,88084.0,88067.0,0.24097416]
[1767230119827,0.51168525,88080.0,88067.0,0.24097416]
[1767230119996,0.0114,88079.0,88067.0,0.24097416]
[1767230120197,0.0114,88079.0,88065.0,0.25061382]
[1767230124501,0.0114,88079.0,88069.0,0.51168525]
[1767230124652,0.0114,88079.0,88069.0,0.74390298]
[1767230125169,0.0114,88079.0,88069.0,0.23221773]
[1767230126378,0.0114,88079.0,88069.0,0.74390298]
[1767230127378,0.0114,88079.0,88070.0,0.23221773]
[1767230132752,0.000148,88086.0,88069.0,0.51168525]
[1767230132753,0.000148,88086.0,88075.0,0.23221773]
[1767230132872,0.0114,88082.0,88076.0,0.74390298]
[1767230133075,0.0114,88082.0,88073.0,0.23221773]
[1767230133423,0.0114,88081.0,88073.0,0.23221773]
[1767230135346,0.0114,88081.0,88071.0,0.51168525]
[1767230135347,0.000148,88095.0,88072.0,0.23221773]
[1767230135548,0.000148,88095.0,88069.0,0.0114]
[1767230135549,0.000148,88095.0,88086.0,0.23221773]
[1767230136196,0.001099,88086.0,88083.0,0.00013737]
[1767230136836,0.001099,88086.0,88065.0,0.06102823]
[1767230136837,0.23512059,88085.0,88069.0,0.23221773]
[1767230136996,0.23512059,88085.0,88070.0,0.51168525]
[1767230137196,0.23512059,88085.0,88069.0,0.23221773]
[1767230137197,0.0114,88088.0,88069.0,0.24361773]
[1767230137397,0.24652059,88088.0,88070.0,0.74390298]
[1767230137587,0.24652059,88088.0,88071.0,0.23221773]
[1767230139024,0.0114,88088.0,88078.0,0.51168525]
[1767230139227,0.0114,88088.0,88079.0,0.23221773]
[1767230140158,0.000148,88095.0,88083.0,0.23221773]
[1767230140391,0.000148,88095.0,88086.0,0.23221773]
[1767230145023,0.0114,88097.0,88085.0,0.51168525]
[1767230145336,0.0114,88097.0,88082.0,0.13638068]
[1767230145337,0.00016,90087.0,88082.0,0.13638068]
[1767230145338,0.51168525,88120.0,88088.0,0.23221773]
[1767230145538,0.51168525,88120.0,88100.0,0.51168525]
[1767230145539,0.23526259,88114.0,88100.0,0.51168525]
[1767230145738,0.23526259,88114.0,88097.0,0.23221773]
[1767230145899,0.23526259,88114.0,88101.0,0.23166873]
[1767230145900,0.000142,88114.0,88101.0,0.23166873]
[1767230146328,0.51168525,88111.0,88093.0,0.23221773]
[1767230146523,0.51168525,88111.0,88091.0,0.23221773]
[1767230146524,0.00055,88101.0,88091.0,0.23221773]
[1767230146723,0.0114,88100.0,88091.0,0.23221773]
[1767230147743,0.24652059,88100.0,88081.0,0.000171]
[1767230147945,0.23512059,88099.0,88081.0,0.23258873]
[1767230148153,0.23512059,88099.0,88083.0,0.23221773]
[1767230149251,0.0114,88098.0,88083.0,0.23221773]
[1767230149917,0.0114,88098.0,88089.0,0.23221773]
[1767230150570,0.00075,88101.0,88089.0,0.23221773]
[1767230150774,0.0114,88097.0,88089.0,0.23221773]
[1767230150932,0.0114,88097.0,88091.0,0.25194582]
[1767230152429,0.00075,88101.0,88091.0,0.25194582]
[1767230152642,0.05622839,88177.0,88082.0,0.13638068]
[1767230152643,0.017296,88114.0,88097.0,0.25194582]
[1767230152865,0.0114,88113.0,88097.0,0.25194582]
[1767230154576,0.51168525,88110.0,88097.0,0.25194582]
[1767230158627,0.0114,88113.0,88097.0,0.25194582]
[1767230158847,0.51168525,88110.0,88097.0,0.25194582]
[1767230160882,0.0114,88113.0,88097.0,0.25194582]
[1767230161051,0.51168525,88110.0,88097.0,0.25194582]
[1767230164036,0.23903275,88106.0,88090.0,0.0001565]
[1767230164274,0.51168525,88100.0,88090.0,0.0001565]
[1767230164451,0.23903275,88098.0,88090.0,0.0001565]
[1767230165362,0.01136,88099.0,88090.0,0.0001565]
[1767230168010,0.23903275,88098.0,88090.0,0.0001565]
[1767230168560,0.23903275,88098.0,88081.0,0.17728803]
[1767230168561,0.23903275,88098.0,88081.0,0.13673718]
[1767230169360,0.51168525,88091.0,88081.0,0.17728803]
[1767230169565,0.0114,88090.0,88081.0,0.17728803]
[1767230169964,0.0114,88090.0,88081.0,0.13673718]
[1767230171984,0.25043275,88090.0,88081.0,0.0003565]
[1767230172427,0.25043275,88090.0,88082.0,0.13638068]
[1767230172742,0.25043275,88090.0,88083.0,0.0177288]
[1767230176623,0.00077443,88088.0,88083.0,0.0177288]
[1767230176810,0.00073215,88088.0,88083.0,0.0177288]
[1767230178046,0.2397649,88088.0,88083.0,0.0177288]
[1767230178295,0.2397649,88088.0,88081.0,0.0003565]
[1767230178296,0.2397649,88088.0,88077.0,0.04055085]
[1767230178509,0.2397649,88088.0,88073.0,0.04055085]
[1767230179227,0.2397649,88088.0,88072.0,0.04070735]
[1767230179427,0.2397649,88088.0,88072.0,0.0001565]
[1767230179830,0.2397649,88088.0,88070.0,0.04055085]
[1767230179831,0.2397649,88088.0,88070.0,0.29269067]
[1767230180446,0.2397649,88088.0,88070.0,0.25213982]
[1767230180652,0.2397649,88088.0,88070.0,0.000194]
[1767230182397,0.23903275,88088.0,88070.0,0.000194]
[1767230183755,0.51152078,88080.0,88070.0,0.000194]
[1767230183873,0.0114,88079.0,88070.0,0.000194]
[1767230184925,0.0114,88079.0,88070.0,0.00054707]
[1767230189735,0.23829085,88079.0,88070.0,0.00054707]
[1767230197740,0.23829085,88079.0,88059.0,0.24485804]
[1767230197877,0.23829085,88079.0,88060.0,0.13638068]
[1767230200330,0.23829085,88079.0,88059.0,5.608e-05]
[1767230200331,0.51152078,88070.0,88059.0,5.608e-05]
[1767230200517,0.0114,88069.0,88059.0,5.608e-05]
[1767230200921,0.22689085,88068.0,88059.0,5.608e-05]
[1767230201134,0.22689085,88068.0,88052.0,0.00054357]
[1767230201325,0.22689085,88061.0,88052.0,0.00054357]
[1767230201521,0.22689085,88059.0,88052.0,0.00054357]
[1767230205105,0.22689085,88059.0,88047.0,0.0001938]
[1767230210533,0.0114,88060.0,88035.0,0.0001938]
[1767230210534,0.23651309,88056.0,88035.0,0.0001938]
[1767230210826,0.04548,88058.0,88035.0,0.0001938]
[1767230210827,0.51152078,88050.0,88035.0,0.0001938]
[1767230210978,0.0114,88049.0,88035.0,0.0001938]
[1767230211378,0.24791309,88049.0,88035.0,0.0001938]
[1767230212222,0.24791309,88049.0,88033.0,0.0002]
[1767230213917,0.24791309,88049.0,88033.0,0.2502]
[1767230221638,0.23651309,88042.0,88033.0,0.2502]
[1767230221834,0.155466,88040.0,88022.0,0.24364506]
[1767230223012,0.155466,88040.0,88022.0,0.24371324]
[1767230223433,0.155466,88040.0,88022.0,6.818e-05]
[1767230223629,0.155466,88040.0,88023.0,0.2439587]
[1767230224454,0.0114,88041.0,88023.0,0.2439587]
[1767230224748,0.17312658,88041.0,88023.0,0.2439587]
[1767230225097,0.17312658,88041.0,88022.0,6.818e-05]
[1767230225098,0.00572428,88023.0,88022.0,6.818e-05]
[1767230225298,0.01602528,88023.0,88022.0,6.818e-05]
[1767230226764,0.01602528,88023.0,88022.0,1.8e-07]
[1767230228520,0.01602528,88023.0,88013.0,0.24223814]
[1767230228757,0.016131,88023.0,88010.0,0.51152078]
[1767230228873,0.04548,88037.0,88010.0,0.51152078]
[1767230228874,0.17953884,88040.0,88021.0,0.13638068]
[1767230229079,0.01781258,88035.0,88022.0,0.2439587]
[1767230229316,0.01774458,88035.0,88022.0,0.24406442]
[1767230229716,0.01774458,88035.0,88023.0,0.2439587]
[1767230243322,0.0114,88034.0,88026.0,0.22721192]
[1767230243524,0.04548,88043.0,88026.0,0.22721192]
[1767230243525,0.0114,88033.0,88026.0,0.22721192]
[1767230243723,0.0114,88032.0,88026.0,0.22721192]
[1767230244282,0.000549,88026.0,88025.0,0.0002]
[1767230244476,0.0114,88032.0,88025.0,0.0002]
[1767230251862,0.0114,88032.0,88022.0,0.00010572]
[1767230256076,0.22100677,88032.0,88022.0,7.2e-07]
[1767230256734,0.0114,88032.0,88022.0,7.2e-07]
[1767230262832,0.22053539,88032.0,88022.0,7.2e-07]
[1767230263612,0.20905823,88031.0,88022.0,7.2e-07]
[1767230272746,0.20905823,88031.0,88022.0,0.00024012]
[1767230276955,0.07326932,88031.0,88022.0,0.00024012]
[1767230277158,0.21876764,88030.0,88015.0,0.0001733]
[1767230277463,0.21852769,88029.0,88015.0,0.0001733]
[1767230277670,0.20785864,88029.0,88015.0,0.0001733]
[1767230278482,0.20764639,88025.0,88015.0,0.0001733]
[1767230278706,0.0114,88024.0,88015.0,0.0001733]
[1767230278869,0.0114,88024.0,88015.0,3e-07]
[1767230282404,0.20731014,88022.0,88015.0,3e-07]
[1767230282628,0.25279014,88022.0,88015.0,3e-07]
[1767230283000,0.20719322,88020.0,88015.0,3e-07]
[1767230286731,0.04548,88022.0,88015.0,3e-07]
[1767230286946,0.0454232,88022.0,88015.0,3e-07]
[1767230288915,0.0454232,88022.0,88007.0,0.24124076]
[1767230289064,0.51223493,88020.0,88007.0,0.24124076]
[1767230293715,0.07753895,88019.0,88007.0,0.24124076]
[1767230294204,0.25175462,88022.0,88007.0,0.24124076]
[1767230294396,0.51223493,88020.0,88007.0,0.24124076]
[1767230295224,0.25175462,88022.0,88007.0,0.24124076]
[1767230295430,0.51223493,88020.0,88007.0,0.24124076]
[1767230296516,0.25175462,88022.0,88007.0,0.24124076]
[1767230301910,0.0454232,88022.0,88007.0,0.24124076]
[1767230302087,0.0454232,88022.0,88006.0,0.22342957]
[1767230302899,0.00010584,88030.0,88006.0,0.22342957]
[1767230303117,0.06757722,88029.0,88006.0,0.22342957]
[1767230303326,0.01065722,88028.0,88006.0,0.22342957]
[1767230306351,0.03522879,88028.0,88006.0,0.22342957]
[1767230306494,0.01065722,88027.0,88006.0,0.22342957]
[1767230309181,0.01065722,88026.0,88006.0,0.22342957]
[1767230309384,0.01061552,88025.0,88006.0,0.22342957]
[1767230309586,0.05692,88029.0,88006.0,0.22342957]
[1767230310831,0.05692,88029.0,88011.0,0.22342957]
[1767230313117,0.02458244,88028.0,88011.0,0.22342957]
[1767230318974,0.05692,88029.0,88011.0,0.22342957]
[1767230321305,0.01066805,88028.0,88011.0,0.22342957]
[1767230321478,0.01066805,88027.0,88011.0,0.22342957]
[1767230321684,0.01066805,88026.0,88011.0,0.22342957]
[1767230321888,0.05692,88029.0,88011.0,0.22342957]
[1767230322089,0.01066805,88028.0,88011.0,0.22342957]
[1767230322286,0.01066805,88027.0,88011.0,0.22342957]
[1767230322495,0.01066805,88026.0,88011.0,0.22342957]
[1767230322691,0.05692,88029.0,88011.0,0.22342957]
[1767230322914,0.01066806,88028.0,88011.0,0.22342957]
[1767230323092,0.01066806,88027.0,88011.0,0.22342957]
[1767230323291,0.01066806,88026.0,88011.0,0.22342957]
[1767230323497,0.05692,88029.0,88011.0,0.22342957]
[1767230323693,0.01066814,88028.0,88011.0,0.22342957]
[1767230323877,0.01066814,88027.0,88011.0,0.22342957]
[1767230324079,0.01066814,88026.0,88011.0,0.22342957]
[1767230324279,0.01066814,88025.0,88011.0,0.22342957]
[1767230324485,0.02457969,88028.0,88011.0,0.22342957]
[1767230324680,0.01066847,88027.0,88011.0,0.22342957]
[1767230324886,0.01066847,88026.0,88011.0,0.22342957]
[1767230325238,0.05692,88029.0,88011.0,0.22342957]
[1767230325520,0.01066854,88028.0,88011.0,0.22342957]
[1767230325717,0.01066854,88027.0,88011.0,0.22342957]
[1767230325943,0.01066854,88026.0,88011.0,0.22342957]
[1767230326145,0.05692,88029.0,88011.0,0.22342957]
[1767230326269,0.01066879,88028.0,88011.0,0.22342957]
[1767230326619,0.0114,88027.0,88011.0,0.22342957]
[1767230326923,0.01066878,88026.0,88011.0,0.22342957]
[1767230327216,0.0114,88027.0,88011.0,0.22342957]
[1767230327384,0.01066908,88026.0,88011.0,0.22342957]
[1767230327580,0.0114,88027.0,88011.0,0.22342957]
[1767230327767,0.01066908,88026.0,88011.0,0.22342957]
[1767230327965,0.0114,88027.0,88011.0,0.22342957]
[1767230328209,0.01066908,88026.0,88011.0,0.22342957]
[1767230328386,0.0114,88027.0,88011.0,0.22342957]
[1767230328587,0.01066946,88026.0,88011.0,0.22342957]
[1767230328788,0.0114,88027.0,88011.0,0.22342957]
[1767230329005,0.01066946,88026.0,88011.0,0.22342957]
[1767230329270,0.0114,88027.0,88011.0,0.22342957]
[1767230329420,0.01066993,88026.0,88011.0,0.22342957]
[1767230329753,0.0114,88027.0,88011.0,0.22342957]
[1767230329931,0.01066993,88026.0,88011.0,0.22342957]
[1767230330130,0.0114,88027.0,88011.0,0.22342957]
[1767230330458,0.01067092,88026.0,88011.0,0.22342957]
[1767230330602,0.0114,88027.0,88011.0,0.22342957]
[1767230330802,0.01067092,88026.0,88011.0,0.22342957]
[1767230331002,0.0114,88027.0,88011.0,0.22342957]
[1767230331200,0.01067092,88026.0,88011.0,0.22342957]
[1767230331435,0.01067092,88025.0,88011.0,0.22342957]
[1767230331632,0.0114,88027.0,88011.0,0.22342957]
[1767230331835,0.01067232,88026.0,88011.0,0.22342957]
[1767230332032,0.02207232,88025.0,88011.0,0.23127081]
[1767230332241,0.08438002,88048.0,88005.0,0.0001733]
[1767230332242,0.0001733,88041.0,88016.0,0.23127081]
[1767230332598,0.0001733,88041.0,88021.0,0.23127081]
[1767230332599,0.06759137,88040.0,88021.0,0.23127081]
[1767230332732,0.01067137,88039.0,88021.0,0.23127081]
[1767230332934,0.01067137,88038.0,88021.0,0.23127081]
[1767230333151,0.05692,88040.0,88021.0,0.23127081]
[1767230338176,0.2497,88049.0,88021.0,0.23127081]
[1767230338337,0.05681525,88109.0,88040.0,0.23127081]
[1767230338338,0.0114,88054.0,88040.0,0.23127081]
[1767230338496,0.0002,88052.0,88040.0,0.23072181]
[1767230341358,0.23217469,88049.0,88027.0,0.23127081]
[1767230341556,0.23217469,88049.0,88008.0,0.0001611]
[1767230341557,0.23217469,88049.0,88018.0,0.24267081]
[1767230341765,0.23217469,88049.0,88020.0,0.51247031]
[1767230341966,0.23217469,88049.0,88021.0,0.23127081]
[1767230345161,0.23217469,88047.0,88021.0,0.23127081]
[1767230345367,0.23217469,88045.0,88021.0,0.23127081]
[1767230352685,0.23217469,88045.0,88020.0,0.51247031]